bitfinex-derivatives/quotes_BTCF0:USTF0_20251204
["timestamp","ask_amount","ask_price","bid_price","bid_amount"]
[1764855174614,0.0107658,92879.0,92871.0,0.5021]
[1764855174920,0.04270591,92885.0,92884.0,0.5021]
[1764855174921,0.4986051,92885.0,92884.0,0.5021]
[1764855175119,0.0842138,92907.0,92900.0,0.16534999]
[1764855175417,0.23829,92915.0,92914.0,0.5128617]
[1764855175615,0.23829,92915.0,92914.0,0.5021]
[1764855175816,0.48784,92915.0,92914.0,0.24636]
[1764855176014,0.53784,92915.0,92914.0,0.24636]
[1764855176222,0.48784,92915.0,92914.0,0.5021]
[1764855176821,0.48784,92915.0,92914.0,0.8629]
[1764855177014,0.23829,92915.0,92914.0,0.5021]
[1764855177413,0.28929,92915.0,92914.0,0.5021]
[1764855177613,0.23929,92915.0,92914.0,0.5021]
[1764855178623,0.001,92915.0,92914.0,0.5021]
[1764855178821,0.53884,92915.0,92910.0,0.3608]
[1764855179024,0.48784,92911.0,92910.0,0.37079999]
[1764855179523,0.53784,92911.0,92910.0,0.37079999]
[1764855179717,0.48784,92911.0,92910.0,0.37079999]
[1764855179918,0.4986021,92911.0,92910.0,0.3608]
[1764855180226,0.5486021,92911.0,92910.0,0.3608]
[1764855180720,0.4986026,92906.0,92905.0,0.00016144]
[1764855180931,0.5486026,92906.0,92905.0,0.00016144]
[1764855181621,0.5386026,92906.0,92905.0,0.00016144]
[1764855182327,1.0169026,92906.0,92905.0,0.00016144]
[1764855183215,1.0169026,92906.0,92894.0,0.3608]
[1764855183216,0.6282539,92895.0,92894.0,0.3608]
[1764855183416,0.48784,92895.0,92894.0,0.8629]
[1764855183621,0.48784,92901.0,92900.0,0.5021]
[1764855184014,0.53784,92901.0,92900.0,0.5021]
[1764855184216,0.61123,92895.0,92894.0,0.3608]
[1764855184515,0.53258,92895.0,92894.0,0.3608]
[1764855185622,0.48258,92895.0,92894.0,0.3608]
[1764855186024,0.48258,92895.0,92894.0,0.8418]
[1764855186219,0.48158,92895.0,92894.0,0.8418]
[1764855186826,0.48358,92895.0,92894.0,0.8418]
[1764855187123,0.48358,92895.0,92894.0,0.3608]
[1764855187124,0.53358,92895.0,92894.0,0.3608]
[1764855187337,1.11683,92895.0,92894.0,0.3608]
[1764855187523,0.98818,92895.0,92894.0,0.3608]
[1764855188230,1.03918,92895.0,92894.0,0.3608]
[1764855188529,0.98918,92895.0,92894.0,0.3608]
[1764855188728,1.02918,92895.0,92894.0,0.3608]
[1764855189027,0.98918,92895.0,92894.0,0.3608]
[1764855189328,1.02918,92895.0,92894.0,0.3608]
[1764855189529,1.03718,92895.0,92894.0,0.3608]
[1764855189724,1.03918,92895.0,92894.0,0.3608]
[1764855192028,0.48158,92892.0,92891.0,0.00016144]
[1764855192215,0.69158,92892.0,92891.0,0.00016144]
[1764855192531,0.69158,92892.0,92879.0,0.3608]
[1764855192532,0.6173,92880.0,92879.0,0.3608]
[1764855192723,0.6173,92880.0,92862.0,0.3608]
[1764855192724,0.48158,92863.0,92862.0,0.3608]
[1764855192918,1.0477476,92863.0,92862.0,0.3608]
[1764855193117,0.9977476,92863.0,92862.0,0.3608]
[1764855193917,0.5161676,92863.0,92862.0,0.8418]
[1764855194128,0.5054,92863.0,92862.0,0.8525677]
[1764855194327,0.001,92863.0,92862.0,0.8418]
[1764855194627,0.52258,92863.0,92862.0,0.8418]
[1764855194921,0.48258,92863.0,92862.0,0.8418]
[1764855195717,0.48158,92863.0,92862.0,0.8418]
[1764855196425,0.50536,92865.0,92864.0,0.481]
[1764855197425,0.00016153,92872.0,92871.0,0.4917667]
[1764855197619,0.00016153,92872.0,92871.0,0.8525667]
[1764855198921,0.0107642,92893.0,92890.0,0.14154]
[1764855199229,0.4923442,92893.0,92892.0,0.481]
[1764855199735,0.0107624,92909.0,92900.0,0.14154]
[1764855199924,0.0107619,92913.0,92912.0,0.481]
[1764855201532,0.00016153,92914.0,92913.0,0.481]
[1764855203135,0.01792323,92914.0,92913.0,0.481]
[1764855203632,0.00716153,92914.0,92913.0,0.481]
[1764855203825,0.0107595,92933.0,92932.0,0.481]
[1764855204237,0.4923391,92937.0,92936.0,0.24142]
[1764855204436,1.0383391,92937.0,92936.0,0.24142]
[1764855204932,0.4923397,92931.0,92930.0,0.481]
[1764855205332,0.5423397,92931.0,92930.0,0.481]
[1764855205738,0.5423397,92931.0,92928.0,0.14154]
[1764855205739,0.48158,92928.0,92927.0,0.00016144]
[1764855205930,0.48158,92928.0,92927.0,0.48116144]
[1764855206233,0.0107597,92931.0,92930.0,0.481]
[1764855207028,0.48174144,92946.0,92945.0,0.23958]
[1764855207336,0.48158,92941.0,92940.0,0.24142]
[1764855207532,0.4923397,92931.0,92930.0,0.002]
[1764855207723,1.3592597,92931.0,92930.0,0.002]
[1764855207922,1.4092597,92931.0,92930.0,0.002]
[1764855208439,1.4092597,92931.0,92930.0,0.24342]
[1764855208629,1.4092597,92931.0,92930.0,0.24142]
[1764855208826,1.4092597,92931.0,92930.0,0.002]
[1764855209333,0.26024,92928.0,92927.0,0.48116144]
[1764855209637,0.7771197,92931.0,92930.0,0.62254]
[1764855209933,0.76636,92931.0,92930.0,0.62354]
[1764855210130,0.50612,92931.0,92930.0,0.62354]
[1764855210335,0.00016144,92946.0,92945.0,0.481]
[1764855212629,0.0107537,92984.0,92945.0,0.481]
[1764855212630,0.2667945,92977.0,92965.0,0.481]
[1764855212837,0.2667945,92977.0,92961.0,0.14154]
[1764855212838,0.3608,92981.0,92980.0,0.481]
[1764855213035,0.48158,92973.0,92972.0,0.38296]
[1764855213229,0.48158,92973.0,92972.0,0.62254]
[1764855213926,0.4513354,92969.0,92968.0,0.22628]
[1764855214132,0.4513354,92969.0,92968.0,0.44892]
[1764855214532,0.2408754,92969.0,92968.0,0.44892]
[1764855214935,0.4513354,92969.0,92968.0,0.44892]
[1764855215535,0.4513354,92969.0,92968.0,0.44992]
[1764855215726,0.4513354,92969.0,92968.0,0.001]
[1764855215926,0.5013354,92969.0,92968.0,0.001]
[1764855216237,0.4513354,92969.0,92968.0,0.001]
[1764855216432,0.5013354,92969.0,92968.0,0.001]
[1764855216631,0.4913354,92969.0,92968.0,0.001]
[1764855217029,0.2408754,92969.0,92968.0,0.44992]
[1764855217236,0.0107554,92969.0,92968.0,0.44992]
[1764855217438,0.516915,92972.0,92971.0,0.44892]
[1764855217937,0.010755,92972.0,92971.0,0.44892]
[1764855218141,0.505755,92972.0,92971.0,0.44892]
[1764855218843,0.00016134,92982.0,92981.0,0.44892]
[1764855219031,0.44058,92981.0,92972.0,0.4907]
[1764855219231,0.44058,92981.0,92980.0,0.44892]
[1764855220237,0.00016134,92982.0,92981.0,0.44892]
[1764855221938,0.00016134,92982.0,92981.0,0.38908599]
[1764855222235,0.50608,92991.0,92982.0,0.0107538]
[1764855222426,0.3610688,93006.0,92999.0,0.42325]
[1764855222634,0.55604,93000.0,92999.0,0.42325]
[1764855224538,0.05,93000.0,92999.0,0.42325]
[1764855225240,0.4803,93000.0,92999.0,0.42325]
[1764855229729,0.5303,93000.0,92994.0,0.12879]
[1764855229933,0.4410528,92991.0,92990.0,0.36096134]
[1764855230141,0.4410528,92991.0,92990.0,0.78421134]
[1764855230347,0.4410528,92991.0,92990.0,0.42341134]
[1764855230645,0.4410528,92991.0,92990.0,0.55220134]
[1764855230840,0.2277728,92991.0,92990.0,0.55220134]
[1764855232048,0.05,93000.0,92999.0,0.42325]
[1764855232244,0.4303,92991.0,92990.0,0.56220133]
[1764855232639,0.4410521,92998.0,92997.0,0.42325]
[1764855232848,0.05,93000.0,92990.0,0.13895133]
[1764855232849,0.05,93000.0,92999.0,0.42325]
[1764855234048,0.05,93000.0,92999.0,0.42525]
[1764855235942,0.4803,93000.0,92999.0,0.42525]
[1764855237348,0.26702,93000.0,92999.0,0.42525]
[1764855237649,0.05,93000.0,92999.0,0.42525]
[1764855238049,0.26702,93000.0,92999.0,0.42325]
[1764855238254,0.05,93000.0,92999.0,0.42525]
[1764855240151,0.0107502,93014.0,93008.0,0.42325]
[1764855240449,0.43046134,93009.0,93008.0,0.3608]
[1764855240646,0.21702,93000.0,92999.0,0.3628]
[1764855240853,0.4803,93000.0,92999.0,0.78605]
[1764855241054,0.4303,93000.0,92999.0,0.78605]
[1764855241350,0.4303,93000.0,92999.0,0.78405]
[1764855241742,0.4803,93000.0,92999.0,0.78405]
[1764855241943,0.4303,93000.0,92999.0,0.78405]
[1764855242949,0.4303,92991.0,92990.0,0.55220134]
[1764855243147,0.2277724,92995.0,92994.0,0.42325]
[1764855243348,0.21702,92995.0,92994.0,0.42325]
[1764855243651,0.26702,92995.0,92994.0,0.42325]
[1764855244247,0.4803,92995.0,92994.0,0.42325]
[1764855244558,0.4174128,92991.0,92990.0,0.00516134]
[1764855244850,0.4174128,92991.0,92968.0,0.38980946]
[1764855244851,0.40666,92969.0,92968.0,0.3608]
[1764855245053,0.9119,92969.0,92968.0,0.56788]
[1764855245255,0.9119,92969.0,92968.0,0.76912]
[1764855245949,0.00016134,92978.0,92977.0,0.40832]
[1764855246246,0.50536134,92978.0,92977.0,0.40832]
[1764855247047,0.96202134,92978.0,92977.0,0.40832]
[1764855247251,0.91202134,92978.0,92977.0,0.40832]
[1764855247553,0.20776,92971.0,92970.0,0.52313]
[1764855248244,0.010755,92972.0,92971.0,0.40832]
[1764855249356,0.50536134,92978.0,92970.0,0.12680999]
[1764855249561,0.50536134,92978.0,92977.0,0.40832]
[1764855250242,0.91202134,92978.0,92977.0,0.40832]
[1764855251054,0.20792134,92978.0,92977.0,0.41032]
[1764855251255,0.00016134,92978.0,92977.0,0.41032]
[1764855251553,0.00016134,92978.0,92977.0,0.41132]
[1764855251950,0.00016134,92978.0,92977.0,0.77212]
[1764855252358,0.40682134,92978.0,92977.0,0.77212]
[1764855252857,0.20792134,92978.0,92977.0,0.77212]
[1764855253351,0.00016134,92978.0,92977.0,0.77212]
[1764855253746,0.00016134,92978.0,92977.0,0.77112]
[1764855253948,0.00016134,92978.0,92977.0,0.77212]
[1764855254348,0.40682134,92978.0,92977.0,0.77212]
[1764855254845,0.44682134,92978.0,92977.0,0.77212]
[1764855255057,0.45682134,92978.0,92977.0,0.77212]
[1764855255261,0.81762134,92978.0,92977.0,0.003]
[1764855255555,0.81762134,92978.0,92955.0,0.3608]
[1764855255556,0.40666,92961.0,92960.0,0.53711]
[1764855255758,0.9223763,92961.0,92960.0,0.53711]
[1764855255954,0.9723763,92961.0,92960.0,0.40832]
[1764855256354,0.9223763,92961.0,92960.0,0.40832]
[1764855258153,0.9223763,92961.0,92960.0,0.40932]
[1764855258555,0.9723763,92961.0,92960.0,0.001]
[1764855259052,0.9723763,92961.0,92955.0,0.3608]
[1764855259053,0.52505,92960.0,92955.0,0.3608]
[1764855259257,0.73505,92960.0,92955.0,0.3608]
[1764855259854,0.73505,92960.0,92950.0,0.00999999]
[1764855260561,0.40666,92950.0,92949.0,0.3608]
[1764855260855,0.45666,92950.0,92949.0,0.56788]
[1764855262964,0.45666,92950.0,92949.0,0.76912]
[1764855265750,0.40666,92941.0,92940.0,0.00016134]
[1764855265950,0.96134,92941.0,92940.0,0.00016134]
[1764855266159,0.9220986,92941.0,92940.0,0.00016134]
[1764855266363,0.0592,92952.0,92940.0,0.00016134]
[1764855266364,0.40682134,92959.0,92958.0,0.40832]
[1764855266567,0.91146134,92959.0,92958.0,0.40832]
[1764855266861,0.96146134,92959.0,92958.0,0.40832]
[1764855267067,0.91146134,92959.0,92958.0,0.40832]
[1764855267361,0.4174174,92951.0,92950.0,0.40832]
[1764855267564,0.9113,92951.0,92950.0,0.40832]
[1764855268260,0.9613,92951.0,92950.0,0.40832]
[1764855268765,0.9613,92951.0,92950.0,0.40932]
[1764855268966,0.9113,92951.0,92950.0,0.40932]
[1764855269272,0.9613,92951.0,92950.0,0.40932]
[1764855270266,0.9613,92951.0,92950.0,0.40832]
[1764855270467,0.9613,92951.0,92950.0,0.40932]
[1764855271162,0.9613,92951.0,92950.0,0.001]
[1764855271367,1.1213,92951.0,92950.0,0.001]
[1764855271660,0.4174186,92941.0,92940.0,0.00016134]
[1764855271863,0.4174197,92931.0,92930.0,0.20708]
[1764855272065,0.40666,92929.0,92928.0,0.3608]
[1764855272367,0.40666,92927.0,92920.0,0.00999999]
[1764855272562,0.61666,92927.0,92920.0,0.00999999]
[1764855273380,0.61666,92927.0,92917.0,0.00016134]
[1764855273381,0.4174213,92918.0,92917.0,0.00016134]
[1764855273557,1.1319813,92918.0,92917.0,0.00016134]
[1764855273972,0.3946718,92913.0,92912.0,0.3608]
[1764855274170,0.6046718,92913.0,92912.0,0.34249706]
[1764855274968,0.3792929,92904.0,92903.0,0.00018579]
[1764855275168,0.9338529,92904.0,92903.0,0.37462579]
[1764855275561,0.8838529,92904.0,92903.0,0.37462579]
[1764855275765,0.9338529,92904.0,92903.0,0.37462579]
[1764855276271,0.9238529,92904.0,92903.0,0.37462579]
[1764855276474,0.8838529,92904.0,92903.0,0.37462579]
[1764855276773,0.87309,92904.0,92903.0,0.38062579]
[1764855277268,0.87309,92904.0,92903.0,0.38262579]
[1764855277465,0.87301,92904.0,92903.0,0.38262579]
[1764855278558,0.36853,92904.0,92903.0,0.38262579]
[1764855278761,0.87301,92904.0,92903.0,0.38262579]
[1764855279565,0.50448,92904.0,92903.0,0.38262579]
[1764855280668,0.0107621,92912.0,92911.0,0.37444]
[1764855280974,0.5152821,92912.0,92911.0,0.73524]
[1764855281970,0.5152421,92912.0,92911.0,0.73524]
[1764855282369,0.7076221,92912.0,92911.0,0.73524]
[1764855282565,0.9432721,92912.0,92911.0,0.3618]
[1764855282777,0.9432721,92912.0,92911.0,0.001]
[1764855283167,0.3771129,92904.0,92903.0,0.00618579]
[1764855283477,0.4271129,92904.0,92903.0,0.00618579]
[1764855283876,0.4271129,92904.0,92903.0,0.00018579]
[1764855285164,0.2307,92904.0,92903.0,0.36067579]
[1764855285471,0.00016143,92913.0,92912.0,0.36049]
[1764855285472,0.37727323,92913.0,92912.0,0.36049]
[1764855285672,0.3771126,92907.0,92906.0,0.36049]
[1764855285875,0.4271126,92907.0,92906.0,0.36049]
[1764855286371,0.3771126,92907.0,92906.0,0.36049]
[1764855286764,0.3771126,92907.0,92906.0,0.36149]
[1764855287170,0.1771126,92907.0,92906.0,0.36149]
[1764855287378,0.1878752,92907.0,92906.0,0.36149]
[1764855287574,0.0107581,92946.0,92940.0,0.10669]
[1764855287782,0.36635,92942.0,92941.0,0.17681]
[1764855288074,0.87195,92942.0,92941.0,0.17681]
[1764855288472,0.87195,92942.0,92935.0,0.3608]
[1764855288473,0.1807,92936.0,92935.0,0.53761]
[1764855288673,0.41635,92936.0,92935.0,0.3608]
[1764855289376,0.41635,92936.0,92935.0,0.72129]
[1764855290067,0.41635,92936.0,92935.0,0.3628]
[1764855290374,0.41635,92936.0,92935.0,0.003]
[1764855290577,0.36635,92927.0,92926.0,0.00016143]
[1764855290765,1.08187,92927.0,92926.0,0.00016143]
[1764855291478,1.0926302,92927.0,92926.0,0.00016143]
[1764855291882,1.0926302,92927.0,92912.0,0.3608]
[1764855291883,0.3771118,92913.0,92912.0,0.3608]
[1764855292074,0.9225918,92913.0,92912.0,0.3608]
[1764855292977,0.0107622,92910.0,92904.0,0.3608]
[1764855293277,0.0607622,92910.0,92904.0,0.3608]
[1764855293873,0.1807,92905.0,92904.0,0.53761]
[1764855294273,0.1807,92905.0,92904.0,0.72129]
[1764855294480,0.36635,92905.0,92904.0,0.53761]
[1764855294673,0.36635,92905.0,92904.0,0.3608]
[1764855294982,0.41635,92905.0,92904.0,0.3608]
[1764855295380,0.57635,92905.0,92904.0,0.3608]
[1764855295682,0.57635,92905.0,92903.0,0.00018579]
[1764855295683,0.3771129,92904.0,92903.0,0.00018579]
[1764855295878,0.4271129,92904.0,92903.0,0.00018579]
[1764855296178,0.3771129,92904.0,92903.0,0.00018579]
[1764855296373,0.4171129,92904.0,92903.0,0.00018579]
[1764855297083,0.4271129,92904.0,92903.0,0.00018579]
[1764855297778,0.4271129,92904.0,92903.0,0.00118579]
[1764855301183,0.3771155,92881.0,92880.0,0.37079999]
[1764855301482,0.36635,92863.0,92862.0,0.2835]
[1764855301782,0.36635,92859.0,92858.0,0.36049]
[1764855302181,9.312e-05,92859.0,92858.0,0.36049]
[1764855303282,9.312e-05,92859.0,92858.0,0.36149]
[1764855303780,0.50525312,92859.0,92858.0,0.36149]
[1764855304586,0.50525312,92859.0,92858.0,0.36449]
[1764855304980,0.50509312,92859.0,92858.0,0.36449]
[1764855305988,0.51586122,92859.0,92858.0,0.36449]
[1764855306482,0.74598122,92859.0,92858.0,0.36449]
[1764855306688,0.89515122,92859.0,92858.0,0.36449]
[1764855306885,0.50509312,92859.0,92858.0,0.36449]
[1764855307081,0.50505312,92859.0,92858.0,0.36449]
[1764855307485,9.312e-05,92859.0,92858.0,0.36449]
[1764855307683,0.50505312,92859.0,92858.0,0.36449]
[1764855307884,0.88430312,92859.0,92858.0,0.36449]
[1764855308093,0.92430312,92859.0,92858.0,0.004]
[1764855308286,0.88430312,92859.0,92858.0,0.004]
[1764855308487,0.88430312,92859.0,92858.0,0.18309]
[1764855308792,0.88430312,92859.0,92858.0,0.37474]
[1764855311094,0.88430312,92859.0,92858.0,0.004]
[1764855311298,0.88430312,92859.0,92858.0,0.18309]
[1764855311493,0.88430312,92859.0,92858.0,0.37474]
[1764855312595,0.50501312,92859.0,92858.0,0.37474]
[1764855313589,9.312e-05,92859.0,92858.0,0.37474]
[1764855313789,0.42361312,92859.0,92858.0,0.37474]
[1764855313984,0.80290312,92859.0,92858.0,0.37474]
[1764855314189,0.80290312,92859.0,92858.0,0.18309]
[1764855314587,0.80290312,92859.0,92858.0,0.37474]
[1764855314794,0.84290312,92859.0,92858.0,0.004]
[1764855315096,0.85290312,92859.0,92858.0,0.004]
[1764855315595,0.85290312,92859.0,92846.0,0.00026926]
[1764855315596,0.3900595,92847.0,92846.0,0.17935926]
[1764855315792,1.30567262,92847.0,92846.0,0.17935926]
[1764855316184,1.25567262,92847.0,92846.0,0.17935926]
[1764855316396,1.29567262,92847.0,92846.0,0.37100926]
[1764855316900,1.25567262,92847.0,92846.0,0.37100926]
[1764855317098,1.30567262,92847.0,92846.0,0.37100926]
[1764855318799,1.25567262,92847.0,92846.0,0.37100926]
[1764855319197,1.30867262,92847.0,92846.0,0.37100926]
[1764855319789,1.25867262,92847.0,92846.0,0.17935926]
[1764855319992,1.30867262,92847.0,92846.0,0.17935926]
[1764855320399,1.25867262,92847.0,92846.0,0.17935926]
[1764855320608,1.30867262,92847.0,92846.0,0.17935926]
[1764855321599,1.30867262,92847.0,92846.0,0.00026926]
[1764855322190,1.30867262,92847.0,92846.0,0.17935926]
[1764855322598,1.30867262,92847.0,92846.0,0.00026926]
[1764855323207,1.25867262,92847.0,92846.0,0.37100926]
[1764855323406,0.86861312,92847.0,92846.0,0.37100926]
[1764855323604,0.86837312,92847.0,92846.0,0.37100926]
[1764855324302,1.30843262,92847.0,92846.0,0.00026926]
[1764855325004,1.29843262,92847.0,92846.0,0.00026926]
[1764855325898,0.1908913,92831.0,92821.0,0.02885633]
[1764855326103,0.1908913,92831.0,92817.0,0.1303629]
[1764855326104,0.94463442,92831.0,92830.0,0.28578]
[1764855326409,0.94463442,92831.0,92830.0,0.47743]
[1764855326803,0.89463442,92831.0,92830.0,0.47743]
[1764855327000,0.93463442,92831.0,92830.0,0.47743]
[1764855327201,0.89463442,92831.0,92830.0,0.47743]
[1764855327406,0.18012,92818.0,92817.0,0.49033]
[1764855327611,0.37929,92807.0,92806.0,0.54024893]
[1764855327806,0.8944641,92807.0,92806.0,0.00035893]
[1764855328111,1.1044641,92807.0,92806.0,0.00035893]
[1764855328303,0.9444641,92807.0,92806.0,0.00035893]
[1764855328503,1.4652641,92807.0,92806.0,0.00035893]
[1764855328717,1.46535263,92807.0,92806.0,0.00035893]
[1764855329011,0.3900648,92801.0,92800.0,0.05]
[1764855329208,0.6000648,92801.0,92800.0,0.22909]
[1764855329416,0.6000648,92801.0,92800.0,0.42074]
[1764855329417,0.4400648,92801.0,92800.0,0.42074]
[1764855330299,0.6000648,92801.0,92800.0,0.05]
[1764855330506,0.60015483,92801.0,92800.0,0.05]
[1764855331209,0.40398483,92801.0,92800.0,0.54033]
[1764855331410,0.01386483,92801.0,92800.0,0.54033]
[1764855331609,0.69870483,92801.0,92800.0,0.54033]
[1764855332010,0.89787483,92801.0,92800.0,0.54033]
[1764855332213,0.93787483,92801.0,92800.0,0.42074]
[1764855332916,0.93787483,92801.0,92800.0,0.05]
[1764855333412,0.89787483,92801.0,92800.0,0.05]
[1764855333610,0.94803483,92801.0,92800.0,0.05]
[1764855334120,0.89803483,92801.0,92800.0,0.53033]
[1764855334410,0.94803483,92801.0,92800.0,0.53033]
[1764855334623,0.93803483,92801.0,92800.0,0.53033]
[1764855335007,0.94803483,92801.0,92800.0,0.53033]
[1764855335209,0.93803483,92801.0,92800.0,0.53033]
[1764855335410,0.94803483,92801.0,92800.0,0.53033]
[1764855335611,0.50797003,92801.0,92800.0,0.53033]
[1764855336502,0.50797003,92801.0,92800.0,0.89113]
[1764855337510,0.50797003,92801.0,92800.0,0.89213]
[1764855338818,0.50797003,92801.0,92800.0,0.89113]
[1764855339120,0.50797003,92801.0,92800.0,0.89213]
[1764855339708,0.50497003,92801.0,92800.0,0.89213]
[1764855341010,0.010769,92851.0,92800.0,0.89213]
[1764855341011,0.0107737,92811.0,92808.0,0.10577]
[1764855341206,0.0107737,92811.0,92810.0,0.37456]
[1764855341733,0.3572137,92811.0,92810.0,0.37456]
[1764855342015,0.35730634,92811.0,92810.0,0.37456]
[1764855342210,0.40730634,92811.0,92810.0,0.37456]
[1764855342418,0.35730634,92811.0,92810.0,0.1938]
[1764855342805,0.40730634,92811.0,92810.0,0.1938]
[1764855343008,0.1824148,92801.0,92800.0,0.85022]
[1764855343210,0.0107748,92801.0,92800.0,0.84922]
[1764855343518,0.0107745,92804.0,92803.0,0.16875]
[1764855343718,0.01086634,92811.0,92810.0,0.33265]
[1764855343915,0.00309264,92811.0,92810.0,0.33265]
[1764855344417,9.264e-05,92811.0,92810.0,0.33265]
[1764855345409,0.17173264,92811.0,92810.0,0.33265]
[1764855345716,0.34653264,92811.0,92810.0,0.33265]
[1764855345919,0.34653264,92811.0,92810.0,0.001]
[1764855346119,0.39653264,92811.0,92810.0,0.001]
[1764855346316,0.38653264,92811.0,92810.0,0.33365]
[1764855346517,0.38653264,92811.0,92810.0,0.1639]
[1764855347108,0.34644,92801.0,92800.0,0.84922]
[1764855347312,0.17164,92801.0,92800.0,0.84922]
[1764855347507,0.1824148,92801.0,92800.0,0.84922]
[1764855348624,0.0107748,92801.0,92800.0,0.84922]
[1764855349012,0.0107748,92801.0,92800.0,0.85022]
[1764855349522,0.0107748,92801.0,92800.0,0.84922]
[1764855350122,0.0107745,92804.0,92800.0,0.51657]
[1764855350426,9.264e-05,92811.0,92800.0,0.51657]
[1764855350427,0.0107747,92803.0,92802.0,0.33265]
[1764855350725,0.3572147,92803.0,92802.0,0.33265]
[1764855350917,0.3572147,92803.0,92800.0,0.15577]
[1764855350918,0.34644,92801.0,92800.0,0.05]
[1764855351117,0.39644,92801.0,92800.0,0.05]
[1764855351325,0.39653264,92801.0,92800.0,0.0330989]
[1764855351622,0.39753264,92801.0,92800.0,0.0330989]
[1764855351829,0.39753264,92801.0,92800.0,0.1969989]
[1764855352533,0.00109264,92801.0,92800.0,0.3657489]
[1764855356232,0.00109264,92801.0,92800.0,0.3667489]
[1764855356824,0.00109264,92801.0,92800.0,0.3657489]
[1764855357034,0.00109264,92801.0,92800.0,0.3667489]
[1764855357228,0.00109264,92801.0,92800.0,0.39560523]
[1764855357533,0.00109264,92801.0,92800.0,0.3667489]
[1764855358034,9.264e-05,92801.0,92800.0,0.3677489]
[1764855359028,0.34653264,92801.0,92800.0,0.39577797]
[1764855359225,9.264e-05,92801.0,92800.0,0.39677797]
[1764855359425,9.264e-05,92801.0,92800.0,0.3677489]
[1764855359823,9.264e-05,92801.0,92800.0,0.3667489]
[1764855360023,9.264e-05,92801.0,92800.0,0.3677489]
[1764855361337,9.264e-05,92801.0,92800.0,0.3667489]
[1764855361525,9.264e-05,92801.0,92800.0,0.3677489]
[1764855361723,0.00016162,92816.0,92800.0,0.3677489]
[1764855361724,0.00016162,92816.0,92815.0,0.33265]
[1764855362022,0.010772,92826.0,92825.0,0.33265]
[1764855362628,0.3608,92839.0,92838.0,0.33265]
[1764855362830,0.3715704,92839.0,92838.0,0.33265]
[1764855363438,0.3608,92839.0,92838.0,0.33265]
[1764855363821,0.0107701,92842.0,92841.0,0.33161]
[1764855364026,0.3674301,92842.0,92841.0,0.33161]
[1764855364322,0.3674301,92842.0,92840.0,0.11052]
[1764855364323,0.3715697,92846.0,92845.0,0.34814]
[1764855364934,0.3608,92846.0,92845.0,0.34814]
[1764855365639,0.00016162,92848.0,92847.0,0.34814]
[1764855366837,0.50436,92861.0,92844.0,0.3608]
[1764855366838,0.0107683,92858.0,92857.0,0.34814]
[1764855368234,0.1915979,92861.0,92860.0,0.11052]
[1764855368429,0.3674279,92861.0,92860.0,0.45866]
[1764855368835,0.18083,92861.0,92860.0,0.45866]
[1764855369135,0.0107677,92863.0,92862.0,0.34814]
[1764855370235,0.0507677,92863.0,92862.0,0.34814]
[1764855370433,0.0107677,92863.0,92862.0,0.34814]
[1764855370630,0.3608,92866.0,92865.0,0.34814]
[1764855371941,0.00016162,92867.0,92866.0,0.34814]
[1764855373739,0.3674279,92861.0,92860.0,0.19042999]
[1764855373937,0.3674288,92853.0,92852.0,0.70894]
[1764855374138,0.3674293,92849.0,92848.0,0.18059162]
[1764855374444,0.3674293,92849.0,92848.0,0.34830162]
[1764855375443,0.3608,92852.0,92851.0,0.34814]
[1764855375828,0.504,92859.0,92858.0,0.34814]
[1764855377136,0.508,92859.0,92858.0,0.34814]
[1764855377342,0.004,92859.0,92858.0,0.34814]
[1764855378639,0.50416162,92867.0,92857.0,0.0107682]
[1764855378640,0.50416162,92867.0,92866.0,0.34814]
[1764855378945,0.87158882,92867.0,92866.0,0.34814]
[1764855379439,0.00016162,92867.0,92866.0,0.34814]
[1764855379849,0.00116162,92867.0,92866.0,0.34814]
[1764855380032,0.00116162,92867.0,92866.0,0.3589073]
[1764855380438,0.00716162,92867.0,92866.0,0.34814]
[1764855381144,0.0107655,92881.0,92880.0,0.42511]
[1764855382348,0.6946252,92884.0,92883.0,0.34814]
[1764855382533,0.7446252,92884.0,92883.0,0.34814]
[1764855382733,0.6946252,92884.0,92883.0,0.34814]
[1764855383440,0.7466252,92884.0,92883.0,0.34814]
[1764855383634,0.7466252,92884.0,92871.0,0.00016153]
[1764855383840,0.3674264,92874.0,92873.0,0.34814]
[1764855384046,0.4174264,92874.0,92873.0,0.34814]
[1764855384246,0.3674264,92874.0,92873.0,0.34814]
[1764855385042,0.35666,92874.0,92873.0,0.34814]
[1764855385237,0.18083,92877.0,92876.0,0.34814]
[1764855385548,0.8713454,92883.0,92882.0,0.34814]
[1764855386342,0.9213454,92883.0,92882.0,0.34814]
[1764855386639,0.35666,92872.0,92871.0,0.34830153]
[1764855387450,0.35666,92872.0,92871.0,0.00016153]
[1764855387451,0.40666,92872.0,92871.0,0.00016153]
[1764855388039,0.40666,92872.0,92833.0,0.02903081]
[1764855388040,0.10329,92860.0,92833.0,0.02903081]
[1764855388243,0.10329,92840.0,92824.0,0.3608]
[1764855388444,0.3674313,92832.0,92831.0,0.34814]
[1764855389242,0.7282313,92832.0,92831.0,0.34814]
[1764855389437,0.7282313,92832.0,92831.0,0.35014]
[1764855389844,0.71746,92832.0,92831.0,0.35014]
[1764855391053,0.71746,92832.0,92831.0,0.35814]
[1764855391648,0.86054,92839.0,92838.0,0.34814]
[1764855392149,0.91054,92839.0,92838.0,0.34814]
[1764855392353,0.86054,92839.0,92838.0,0.34814]
[1764855392549,0.90054,92839.0,92838.0,0.34814]
[1764855392751,0.50388,92839.0,92838.0,0.34914]
[1764855393753,0.00016153,92841.0,92840.0,0.43322]
[1764855394445,0.17326153,92841.0,92840.0,0.43322]
[1764855395251,0.00016153,92841.0,92840.0,0.44022]
[1764855396153,0.00016153,92841.0,92840.0,0.4509903]
[1764855397161,0.00016153,92841.0,92840.0,0.44022]
[1764855397356,0.00016153,92841.0,92822.0,0.00016153]
[1764855397357,0.33841,92823.0,92822.0,0.00016153]
[1764855397661,0.8531023,92823.0,92822.0,0.00016153]
[1764855397857,0.9031023,92823.0,92822.0,0.00016153]
[1764855398461,0.9031023,92823.0,92822.0,0.01016153]